lending/lending_fUSD_20250917
["ID","MTS","AMOUNT","RATE_DAILY","PERIOD"]
[385891973,1758107440615,-4172.0,0.00026341,2]
[385891974,1758107440623,-726.0,0.00026341,2]
[385891975,1758107440633,-18871.0,0.00026341,2]
[385891976,1758107440643,-1000.0,0.00026346,2]
[385891977,1758107440652,-1425.0,0.00026357,2]
[385891978,1758107440661,-1425.0,0.00026359,2]
[385891979,1758107440670,-1425.0,0.0002636,2]
[385891980,1758107440680,-470.1,0.00026367,2]
[385891981,1758107440692,-1425.0,0.0002638,2]
[385891982,1758107440701,-150.0,0.00026386,2]
[385891983,1758107440710,-151.0,0.00026388,2]
[385891984,1758107440722,-151.0,0.00026388,2]
[385891985,1758107440731,-7000.0,0.00026397,2]
[385891986,1758107440740,-168.0,0.00026406,2]
[385891987,1758107440749,-150.0,0.00026443,2]
[385891988,1758107440760,-6024.12950762,0.00026451,2]
[385891989,1758107440769,-1425.0,0.00026463,2]
[385891990,1758107440778,-150.0,0.00026465,2]
[385891991,1758107440788,-500.0,0.00026473,2]
[385891992,1758107440797,-500.0,0.00026473,2]
[385891993,1758107440809,-500.0,0.00026473,2]
[385891994,1758107440820,-500.0,0.00026473,2]
[385891995,1758107440829,-2118.0,0.00026473,2]
[385891996,1758107440839,-689.0,0.00026473,2]
[385891997,1758107440848,-150.0,0.00026473,2]
[385891998,1758107440857,-6751.16934,0.0002649,2]
[385891999,1758107440866,-1000.0,0.000265,2]
[385892000,1758107440876,-500.0,0.00026513,2]
[385892001,1758107440885,-2000.0,0.00026516,2]
[385892002,1758107440894,-2000.0,0.00026516,2]
[385892003,1758107440904,-150.0,0.0002652,2]
[385892004,1758107440914,-161.49884535,0.00026523,2]
[385892005,1758107440923,-150.0,0.00026526,2]
[385892006,1758107440932,-1000.0,0.00026597,2]
[385892007,1758107440941,-150.0,0.00026598,2]
[385892008,1758107440950,-438.14666705,0.00026609,2]
[385892009,1758107440965,-150.0,0.00026614,2]
[385892010,1758107440974,-150.0,0.00026647,2]
[385892011,1758107440983,-1425.0,0.00026648,2]
[385892012,1758107440992,-1425.0,0.00026659,2]
[385892013,1758107441001,-1425.0,0.00026671,2]
[385892014,1758107441010,-1425.0,0.00026709,2]
[385892015,1758107441019,-164.74209923,0.00026732,2]
[385892016,1758107441029,-1425.0,0.00026732,2]
[385892017,1758107441037,-6024.12950762,0.00026733,2]
[385892018,1758107441046,-1000.0,0.00026733,2]
[385892019,1758107441057,-150.0,0.00026744,2]
[385892020,1758107441065,-500.0,0.00026747,2]
[385892021,1758107441074,-500.0,0.00026747,2]
[385892022,1758107441083,-500.0,0.00026747,2]
[385892023,1758107441093,-500.0,0.00026747,2]
[385892024,1758107441102,-2118.0,0.00026747,2]
[385892025,1758107441111,-689.0,0.00026747,2]
[385892026,1758107441120,-150.0,0.00026747,2]
[385892027,1758107441129,-150.0,0.00026753,2]
[385892028,1758107441139,-7408.99011758,0.00026775,2]
[385892029,1758107441150,-500.0,0.00026787,2]
[385892030,1758107441159,-1425.0,0.000268,2]
[385892031,1758107441168,-514.0,0.000268,2]
[385892032,1758107441176,-270.6442763,0.00026823,2]
[385892033,1758107441185,-150.0,0.00026844,2]
[385892034,1758107441194,-150.0,0.00026846,2]
[385892035,1758107441204,-1425.0,0.00026852,2]
[385892036,1758107441213,-1000.0,0.00026873,2]
[385892037,1758107441222,-150.0,0.00026883,2]
[385892038,1758107441231,-3023.52467191,0.00026892,2]
[385892039,1758107441240,-2500.0,0.000269,9]
[385892040,1758107441250,-150.0,0.000269,2]
[385892041,1758107441259,-1342.11,0.000269,2]
[385892042,1758107441268,-150.0,0.00026913,2]
[385892043,1758107441277,-1425.0,0.00026918,2]
[385892044,1758107441499,-150.0,0.00026935,2]
[385892045,1758107441508,-151.0,0.00026936,2]
[385892046,1758107441518,-151.0,0.00026936,2]
[385892047,1758107441527,-150.0,0.00026944,2]
[385892048,1758107441536,-254.0,0.0002695,2]
[385892049,1758107441545,-76497.82281652,0.00026983,2]
[385892050,1758107441556,-1425.0,0.00026986,2]
[385892051,1758107441565,-150.0,0.00026986,2]
[385892052,1758107441574,-150.0,0.00026988,2]
[385892053,1758107441583,-87249.38538385,0.00026989,2]
[385892054,1758107441592,-6751.16934,0.0002699,2]
[385892055,1758107441601,-1000.0,0.00026991,2]
[385892056,1758107441610,-87249.38538385,0.00026991,2]
[385892057,1758107441619,-305.29890885,0.00026993,2]
[385892058,1758107441628,-200363.7060025,0.00027,2]
[385892059,1758107441637,-15847.75358357,0.00027,2]
[385892060,1758107441647,-1711.55240694,0.00027,2]
[385892061,1758107441656,-203.0,0.00027,2]
[385892062,1758107441665,-150.0,0.0002701,2]
[385892063,1758107441675,-6024.12950762,0.00027015,2]
[385892064,1758107441686,-500.0,0.00027021,2]
[385892065,1758107441696,-500.0,0.00027021,2]
[385892066,1758107441706,-500.0,0.00027021,2]
[385892067,1758107441715,-332.60750656,0.00027021,2]
[385892068,1758107441724,-2118.0,0.00027021,2]
[385892069,1758107441734,-689.0,0.00027021,2]
[385892070,1758107441743,-150.0,0.00027021,2]
[385892071,1758107441753,-1464.94123183,0.00027029,2]
[385892072,1758107441762,-1425.0,0.00027029,2]
[385892073,1758107441772,-150.0,0.00027031,2]
[385892074,1758107441781,-205.0,0.00027043,2]
[385892075,1758107441791,-253.0,0.00027043,2]
[385892076,1758107441800,-200.0,0.00027043,2]
[385892077,1758107441810,-150.877,0.00027043,2]
[385892078,1758107441819,-150.613,0.00027043,2]
[385892079,1758107441828,-150.415,0.00027043,2]
[385892080,1758107441837,-150.34,0.00027043,2]
[385892081,1758107441846,-298.164,0.00027043,2]
[385892082,1758107441856,-250.0,0.00027043,2]
[385892083,1758107441865,-187.242,0.00027043,2]
[385892084,1758107441875,-206.32,0.00027043,2]
[385892085,1758107441884,-208.038,0.00027043,2]
[385892086,1758107441894,-250.0,0.00027043,2]
[385892087,1758107441903,-151.806,0.00027043,2]
[385892088,1758107441912,-156.0,0.00027043,2]
[385892089,1758107441921,-1263.39,0.00027043,2]
[385892090,1758107441931,-1425.0,0.00027047,2]
[385892091,1758107441941,-313.4,0.00027051,2]
[385892092,1758107441950,-500.0,0.00027061,2]
[385892093,1758107441959,-1299.21920692,0.00027064,2]
[385892094,1758107441969,-1894.19060861,0.00027064,2]
[385892095,1758107441978,-170.8,0.00027075,2]
[385892096,1758107441987,-1425.0,0.00027079,2]
[385892097,1758107441996,-631.14,0.00027082,2]
[385892098,1758107442006,-658.523,0.00027089,15]
[385892099,1758107442015,-150.0,0.00027089,2]
[385892100,1758107442024,-313.4,0.00027091,2]
[385892101,1758107442034,-1000.0,0.00027093,2]
[385892102,1758107442043,-1000.0,0.00027098,2]
[385892103,1758107442053,-282.14,0.000271,7]
[385892104,1758107442062,-1342.11,0.000271,2]
[385892105,1758107442071,-154.34155915,0.00027119,2]
[385892106,1758107442081,-150.0,0.00027123,2]
[385892107,1758107442090,-1085.84,0.00027123,2]
[385892108,1758107442099,-150.0,0.00027123,2]
[385892109,1758107442108,-150.0,0.00027123,2]
[385892110,1758107442118,-150.0,0.00027123,2]
[385892111,1758107442127,-150.0,0.00027123,2]
[385892112,1758107442136,-543.25,0.00027123,2]
[385892113,1758107442145,-313.4,0.00027132,2]
[385892114,1758107442155,-1425.0,0.00027139,2]
[385892115,1758107442164,-150.0,0.00027153,2]
[385892116,1758107442173,-168.0,0.00027154,2]
[385892117,1758107442182,-1425.0,0.00027161,2]
[385892118,1758107442191,-1000.0,0.00027163,2]
[385892119,1758107442201,-1879.55510811,0.0002717,2]
[385892120,1758107442210,-706.89234578,0.0002717,2]
[385892121,1758107442219,-1000.0,0.0002717,2]
[385892122,1758107442228,-3653.6667378,0.0002717,2]
[385892123,1758107442237,-561678.22628612,0.0002717,2]
[385892124,1758107442247,-500.0,0.00027173,2]
[385892125,1758107442257,-500.0,0.00027173,2]
[385892126,1758107442266,-587.14935801,0.00027173,2]
[385892127,1758107442275,-500.0,0.00027173,2]
[385892128,1758107442285,-500.0,0.00027173,2]
[385892129,1758107442294,-500.0,0.00027173,2]
[385892130,1758107442303,-500.0,0.00027173,2]
[385892131,1758107442312,-500.0,0.00027173,2]
[385892132,1758107442322,-500.0,0.00027173,2]
[385892133,1758107442331,-500.0,0.00027173,2]
[385892134,1758107442340,-165.13734492,0.00027173,2]
[385892135,1758107442349,-500.0,0.00027173,2]
[385892136,1758107442358,-500.0,0.00027173,2]
[385892137,1758107442367,-500.0,0.00027173,2]
[385892138,1758107442376,-500.54332424,0.00027173,2]
[385892139,1758107442386,-500.61762801,0.00027173,2]
[385892140,1758107442394,-502.0032795,0.00027173,2]
[385892141,1758107442404,-500.0,0.00027173,2]
[385892142,1758107442413,-500.0,0.00027173,2]
[385892143,1758107442422,-566.56020778,0.00027173,2]
[385892144,1758107442431,-500.0,0.00027173,2]
[385892145,1758107442440,-500.0,0.00027173,2]
[385892146,1758107442449,-500.0,0.00027173,2]
[385892148,1758107442458,-500.0,0.00027173,2]
[385892150,1758107442468,-200.0,0.00027173,2]
[385892151,1758107442477,-500.0,0.00027173,2]
[385892152,1758107442486,-500.0,0.00027173,2]
[385892153,1758107442495,-500.0,0.00027173,2]
[385892155,1758107442504,-500.0,0.00027173,2]
[385892156,1758107442513,-500.0,0.00027173,2]
[385892157,1758107442522,-159.85260474,0.00027173,2]
[385892158,1758107442531,-504.77559094,0.00027173,2]
[385892159,1758107442541,-500.89000298,0.00027173,2]
[385892160,1758107442550,-500.0,0.00027173,2]
[385892161,1758107442559,-500.32507605,0.00027173,2]
[385892162,1758107442568,-502.96237646,0.00027173,2]
[385892163,1758107442577,-500.0,0.00027173,2]
[385892164,1758107442587,-500.0,0.00027173,2]
[385892165,1758107442596,-500.0,0.00027173,2]
[385892166,1758107442604,-500.0,0.00027173,2]
[385892167,1758107442614,-150.0,0.00027173,2]
[385892168,1758107442623,-362.64323386,0.00027175,2]
[385892169,1758107442632,-462.19235688,0.00027177,2]
[385892170,1758107442641,-561.74147991,0.00027179,2]
[385892171,1758107442650,-1000.0,0.00027179,2]
[385892172,1758107442659,-512.56008371,0.00027179,2]
[385892173,1758107442669,-3577.55431776,0.0002718,2]
[385892174,1758107442679,-661.29060293,0.0002718,2]
[385892175,1758107442696,-760.83972595,0.00027182,2]
[385892176,1758107442705,-3087.86839552,0.00027184,2]
[385892177,1758107442715,-860.38884897,0.00027184,2]
[385892178,1758107442725,-170.0,0.00027185,7]
[385892179,1758107442735,-959.93797199,0.00027186,2]
[385892180,1758107442744,-1425.0,0.00027186,2]
[385892181,1758107442754,-1059.48709501,0.00027188,2]
[385892182,1758107442765,-150.0,0.00027188,2]
[385892183,1758107442776,-1159.03621803,0.0002719,2]
[385892184,1758107442786,-154.0,0.00027191,3]
[385892185,1758107442796,-155.0,0.00027191,3]
[385892186,1758107442806,-151.0,0.00027191,3]
[385892187,1758107442816,-150.0,0.00027196,2]
[385892188,1758107442826,-250000.0,0.000272,2]
[385892189,1758107442835,-383.0,0.000272,2]
[385892190,1758107442845,-783.0,0.000272,2]
[385892191,1758107442854,-242.0,0.000272,2]
[385892192,1758107442864,-1190.01470033,0.000272,2]
[385892193,1758107442874,-168.0,0.00027206,2]
[385892194,1758107442884,-150.0,0.0002721,2]
[385892195,1758107442893,-1000.0,0.00027217,2]
[385892196,1758107442903,-438.14666705,0.00027226,2]
[385892197,1758107442912,-466.5107871,0.00027229,2]
[385892198,1758107442922,-1449.9038345,0.0002723,2]
[385892199,1758107442931,-255.0,0.00027251,7]
[385892200,1758107442941,-1000.0,0.00027264,2]
[385892201,1758107442951,-1000.0,0.0002727,2]
[385892202,1758107442960,-500.0,0.0002727,2]
[385892204,1758107442970,-215.95060602,0.00027281,5]
[385892206,1758107442979,-1425.0,0.00027288,2]
[385892208,1758107442993,-500.0,0.00027295,2]
[385892210,1758107443002,-500.0,0.00027295,2]
[385892212,1758107443012,-500.0,0.00027295,2]
[385892214,1758107443021,-2118.0,0.00027295,2]
[385892216,1758107443030,-689.0,0.00027295,2]
[385892218,1758107443039,-216.65781096,0.00027295,2]
[385892220,1758107443049,-6024.12950762,0.00027297,2]
[385892222,1758107443058,-527.32471707,0.00027297,2]
[385892224,1758107443068,-4856.24931646,0.00027297,2]
[385892226,1758107443077,-56013.5589446,0.000273,7]
[385892250,1758107444128,-3607.94828801,0.000273,7]
[385892251,1758107444207,-38.00276739,0.000273,7]
[385892252,1758107444217,-530.5544331,0.000273,2]
[385892290,1758107465450,2000.0,0.00027123,120]
[385892291,1758107465634,2000.0,0.00024703,120]
[385892292,1758107465728,2043.74868523,0.0002475,120]
[385892296,1758107857015,155.74,0.00012767,2]
[385892302,1758108336470,10642.57141487,0.00021,2]
[385892306,1758108406278,549.49750604,0.00022192,2]
[385892308,1758108428359,13927.325396,7.945e-05,2]
[385892309,1758108489255,5785.33938758,0.0002,4]
[385892310,1758108496643,12200.60857757,0.0002085,2]
[385892311,1758108536992,1578.47034904,0.00015,30]
[385892312,1758108541299,2608.80987891,0.00019,2]
[385892314,1758108631614,-401.5919,0.00023898,2]
[385892315,1758108631624,-250.0,0.00023986,2]
[385892317,1758108631633,-185.29831074,0.00023996,2]
[385892318,1758108631643,-801.6775484,0.00023997,2]
[385892319,1758108631654,-398.3224516,0.00023997,2]
[385892320,1758108631664,-300.0,0.00023997,2]
[385892321,1758108631673,-300.0,0.00023997,2]
[385892322,1758108631682,-317.0,0.00023997,2]
[385892323,1758108631692,-500.0,0.00023998,2]
[385892324,1758108631702,-500.0,0.00023998,2]
[385892325,1758108631714,-500.0,0.00023998,2]
[385892326,1758108631723,-500.0,0.00023998,2]
[385892327,1758108631732,-500.0,0.00023998,2]
[385892328,1758108631741,-500.0,0.00023998,2]
[385892329,1758108631750,-500.0,0.00023998,2]
[385892330,1758108631759,-500.0,0.00023998,2]
[385892331,1758108631768,-500.0,0.00023998,2]
[385892332,1758108631777,-500.0,0.00023998,2]
[385892333,1758108631787,-55.379564,0.00023998,2]
[385892334,1758108631799,-444.620436,0.00023998,2]
[385892335,1758108631808,-500.0,0.00023998,2]
[385892336,1758108631817,-500.0,0.00023998,2]
[385892337,1758108631826,-500.0,0.00023998,2]
[385892338,1758108631836,-500.0,0.00023998,2]
[385892339,1758108631845,-223.0533261,0.00023998,2]
[385892340,1758108631856,-276.9466739,0.00023998,2]
[385892341,1758108631865,-132.88781566,0.00023998,2]
[385892342,1758108631876,-367.11218434,0.00023998,2]
[385892343,1758108631885,-500.0,0.00023998,2]
[385892344,1758108631894,-500.0,0.00023998,2]
[385892345,1758108631903,-102.9645218,0.00023998,2]
[385892346,1758108631927,-397.0354782,0.00023998,2]
[385892347,1758108631936,-500.0,0.00023998,2]
[385892348,1758108631946,-500.0,0.00023998,2]
[385892349,1758108631955,-500.0,0.00023998,2]
[385892350,1758108631964,-500.0,0.00023998,2]
[385892351,1758108631973,-500.0,0.00023998,2]
[385892352,1758108631982,-500.0,0.00023998,2]
[385892353,1758108631991,-500.0,0.00023998,2]
[385892355,1758108632001,-178.92446351,0.00023998,2]
[385892357,1758108632013,-321.07553649,0.00023998,2]
[385892358,1758108632022,-500.0,0.00023998,2]
[385892359,1758108632032,-500.0,0.00023998,2]
[385892360,1758108632041,-500.0,0.00023998,2]
[385892361,1758108632051,-244.33914885,0.00023998,2]
[385892364,1758108632062,-255.66085115,0.00023998,2]
[385892365,1758108632072,-500.0,0.00023998,2]
[385892367,1758108632081,-500.0,0.00023998,2]
[385892369,1758108632090,-500.0,0.00023998,2]
[385892371,1758108632100,-500.0,0.00023998,2]
[385892373,1758108632109,-500.0,0.00023998,2]
[385892375,1758108632121,-500.0,0.00023998,2]
[385892378,1758108632130,-500.0,0.00023998,2]
[385892380,1758108632140,-151.39673405,0.00023998,2]
[385892384,1758108632151,-348.60326595,0.00023998,2]
[385892387,1758108632160,-138.26776405,0.00023998,2]
[385892390,1758108632184,-374.92851378,0.00023998,2]
[385892391,1758108632194,-500.0,0.00023998,2]
[385892392,1758108632203,-500.0,0.00023998,2]
[385892393,1758108632212,-200.39069014,0.00023998,2]
[385892394,1758108632222,-162.49868225,0.00023998,2]
[385892395,1758108632231,-500.0,0.00023998,2]
[385892396,1758108632241,-500.0,0.00023998,2]
[385892397,1758108632250,-195.76483522,0.00023998,2]
[385892398,1758108632329,-304.23516478,0.00023998,2]
[385892399,1758108632338,-59.6321051,0.00023998,2]
[385892400,1758108632349,-440.3678949,0.00023998,2]
[385892401,1758108632359,-500.0,0.00023998,2]
[385892402,1758108632368,-500.0,0.00023998,2]
[385892403,1758108632377,-500.0,0.00023998,2]
[385892404,1758108632386,-150.48903966,0.00023998,2]
[385892405,1758108632396,-500.0,0.00023998,2]
[385892406,1758108632405,-500.0,0.00023998,2]
[385892407,1758108632415,-500.0,0.00023998,2]
[385892408,1758108632424,-201.32771819,0.00023998,2]
[385892409,1758108632469,-298.67228181,0.00023998,2]
[385892410,1758108632478,-15.06969729,0.00023998,2]
[385892411,1758108632490,-484.93030271,0.00023998,2]
[385892412,1758108632500,-500.0,0.00023998,2]
[385892413,1758108632509,-500.0,0.00023998,2]
[385892414,1758108632518,-16998.2008147,0.00023999,2]
[385892415,1758108632529,-897.80703904,0.00023999,2]
[385892416,1758108632540,-801.8537993,0.00023999,2]
[385892417,1758108632551,-487.47542561,0.00023999,2]
[385892418,1758108637585,-487.39284,0.00023999,2]
[385892419,1758108637600,-467.70244162,0.00023999,2]
[385892420,1758108637611,-568.6875332,0.00023999,2]
[385892421,1758108637751,-297.50354047,0.00023999,2]
[385892422,1758108637805,-472.09048088,0.00023999,2]
[385892498,1758108639603,-32866.77594934,0.00023999,2]
[385892499,1758108639612,-4753.77424834,0.00024,2]
[385892519,1758108640099,-406.22575166,0.00024,2]
[385892521,1758108640108,-156.28,0.00024096,2]
[385892523,1758108640119,-244.76935479,0.000241,2]
[385892525,1758108640130,-151.67,0.00024605,2]
[385892527,1758108640139,-154.71388125,0.00024781,2]
[385892528,1758108640148,-517.35173107,0.00024781,2]
[385892529,1758108640165,-8365.33678373,0.00024781,2]
[385892530,1758108640175,-257.91778498,0.00024781,2]
[385892531,1758108640184,-151.0,0.00024781,2]
[385892532,1758108640195,-670.58624095,0.00024781,2]
[385892533,1758108640205,-600.0,0.00024781,2]
[385892534,1758108640214,-500.0,0.00024781,2]
[385892535,1758108640223,-229.95758994,0.00024781,2]
[385892536,1758108640233,-151.0,0.00024781,2]
[385892537,1758108640242,-151.0,0.00024781,2]
[385892538,1758108640252,-151.0,0.00024781,2]
[385892539,1758108640262,-151.0,0.00024781,2]
[385892540,1758108640271,-241.84583989,0.00024781,2]
[385892541,1758108640281,-262.13615845,0.00024781,2]
[385892542,1758108640290,-500.0,0.00024781,2]
[385892543,1758108640299,-237.24672017,0.00024781,2]
[385892544,1758108640308,-115.0654121,0.00024781,2]
[385892545,1758108640321,-35.9345879,0.00024781,2]
[385892546,1758108640330,-500.0,0.00024781,2]
[385892547,1758108640339,-322.6107,0.00024781,2]
[385892548,1758108640348,-540.20469402,0.00024781,2]
[385892549,1758108640358,-500.0,0.00024781,2]
[385892550,1758108640367,-155.895,0.00024782,2]
[385892551,1758108640376,-1548.87167842,0.00024836,2]
[385892552,1758108640406,-1000.0,0.00024836,2]
[385892553,1758108640417,-1091.52236267,0.00024836,2]
[385892554,1758108640428,-1214.07084785,0.00024836,2]
[385892555,1758108640443,-1000.0,0.00024836,2]
[385892556,1758108640455,-3356.88310091,0.00024836,2]
[385892557,1758108640464,-210.49804248,0.00024836,2]
[385892558,1758108640473,-150.0,0.00024879,2]
[385892559,1758108640482,-156.89004854,0.00024879,2]
[385892560,1758108640491,-147.5558221,0.00024879,2]
[385892561,1758108640503,-2.4441779,0.00024879,2]
[385892562,1758108640512,-150.0,0.00024879,2]
[385892563,1758108640522,-150.0,0.00024879,2]
[385892564,1758108640531,-3114.92952058,0.00024891,2]
[385892565,1758108640541,-12228.92614209,0.000249,2]
[385892566,1758108640560,-407.57487322,0.000249,2]
[385892567,1758108640572,-302.2027,0.000249,2]
[385892569,1758108642661,-472.0,0.000246,2]
[385892570,1758108642670,-3021.27784758,0.000249,2]
[385892571,1758108642679,-2703.36855836,0.00025,3]
[385892572,1758108642688,-356.14219974,0.00025,2]
[385892573,1758108642698,-360.0,0.00025,2]
[385892574,1758108642707,-2986.83115803,0.00025,2]
[385892575,1758108642715,-3173.6837671,0.00025,2]
[385892576,1758108642725,-15054.18782987,0.00025,2]
[385892577,1758108642733,-1044.34730118,0.00025,2]
[385892578,1758108642743,-164.14717889,0.00025,2]
[385892579,1758108642752,-3253.11667013,0.00025,2]
[385892580,1758108642761,-15000.0,0.0002501,2]
[385892581,1758108642769,-105395.75237668,0.000251,2]
[385892582,1758108642778,-150.0,0.00025113,2]
[385892583,1758108642787,-216.66746204,0.00025228,2]
[385892584,1758108642796,-150.0,0.00025326,7]
[385892585,1758108642806,-210.56269817,0.00025329,2]
[385892586,1758108642814,-254.11615918,0.00025342,2]
[385892587,1758108642823,-230.25,0.00025423,2]
[385892588,1758108642833,-291.56485632,0.00025456,2]
[385892589,1758108642842,-200.0,0.00025462,2]
[385892590,1758108642851,-1731.22,0.00025463,2]
[385892591,1758108642860,-252.07,0.00025465,2]
[385892592,1758108642869,-250.0,0.00025515,2]
[385892593,1758108642878,-155.74,0.00025533,2]
[385892594,1758108642887,-329.01355346,0.00025571,2]
[385892595,1758108642896,-366.46225061,0.00025685,2]
[385892596,1758108642905,-411.23,0.00025753,2]
[385892597,1758108642914,-150.0,0.00025753,2]
[385892598,1758108642923,-2000.0,0.000258,2]
[385892599,1758108642933,-403.91094775,0.000258,2]
[385892600,1758108642942,-2003.51709554,0.000259,2]
[385892601,1758108642951,-441.35964489,0.00025914,2]
[385892602,1758108642960,-152.16,0.00025925,2]
[385892603,1758108642969,-238.47,0.00025937,2]
[385892604,1758108642979,-151.0,0.00025963,3]
[385892605,1758108642988,-154.0,0.00025963,3]
[385892606,1758108642997,-155.0,0.00025963,3]
[385892607,1758108643006,-589.4894849,0.0002599,2]
[385892608,1758108643015,-1100.32,0.00026,2]
[385892609,1758108643025,-2013.94428387,0.00026,2]
[385892610,1758108643034,-166.37571382,0.00026,10]
[385892611,1758108643043,-420.0,0.00026023,2]
[385892612,1758108643053,-1103.35,0.00026027,2]
[385892613,1758108643062,-150.0,0.00026027,2]
[385892614,1758108643071,-885.93,0.00026027,2]
[385892615,1758108643080,-885.28,0.00026027,2]
[385892617,1758108643089,-478.80834203,0.00026028,2]
[385892618,1758108643099,-516.25703918,0.00026143,2]
[385892619,1758108643108,-267.46074303,0.0002615,2]
[385892620,1758108643120,-334.5472959,0.0002615,2]
[385892621,1758108643129,-173.0,0.00026202,2]
[385892622,1758108643139,-553.70573632,0.00026257,2]
[385892623,1758108643148,-180.0,0.00026274,2]
[385892624,1758108643157,-232.2771,0.00026359,2]
[385892625,1758108643166,-591.15443346,0.00026372,2]
[385892626,1758108643175,-250.0,0.00026374,2]
[385892627,1758108643186,-250.0,0.00026374,2]
[385892628,1758108643195,-3702.15849048,0.00026397,2]
[385892630,1758108643204,-628.6031306,0.00026486,2]
[385892631,1758108643213,-2003.51709548,0.0002653,2]
[385892632,1758108643223,-150.0,0.00026575,2]
[385892633,1758108643233,-666.05182775,0.00026601,2]
[385892634,1758108643242,-4616.93752238,0.00026671,2]
[385892635,1758108643252,-2500.0,0.00026671,2]
[385892636,1758108643262,-230.25,0.00026694,2]
[385892637,1758108643271,-703.50052489,0.00026715,2]
[385892638,1758108643281,-602.0,0.00026771,2]
[385892639,1758108643290,-1581.0,0.00026771,2]
[385892640,1758108643299,-1303.0,0.00026771,2]
[385892641,1758108643308,-569.0,0.00026771,2]
[385892642,1758108643317,-813.0,0.00026771,2]
[385892643,1758108643327,-898.0,0.00026771,2]
[385892644,1758108643336,-1178.0,0.00026771,2]
[385892645,1758108643346,-4172.0,0.00026771,2]
[385892646,1758108643355,-6178.0,0.00026771,2]
[385892647,1758108643364,-756.0,0.00026771,2]
[385892648,1758108643373,-2040.0,0.00026771,2]
[385892649,1758108643381,-1261.0,0.00026771,2]
[385892650,1758108643390,-9402.77896813,0.00026797,2]
[385892651,1758108643399,-6318.79156726,0.00026799,2]
[385892679,1758108645724,-463.0,0.0002578,2]
[385892681,1758108645736,-1135.89979112,0.00026799,2]
[385892706,1758108649546,200.0,0.0002085,2]
[385892707,1758108668806,12748.34703959,7.945e-05,2]
[385892708,1758108668829,2624.64456741,7.945e-05,2]
[385892709,1758108716685,157.93,0.00016712,2]
[385892710,1758108787877,7215.056708,7.945e-05,2]
[385892711,1758108810326,500.0,0.0002954,120]
[385892714,1758109153607,608.2,0.00012784,2]
[385892715,1758109154215,608.2,0.00013457,2]
[385892716,1758109154267,608.2,0.0001413,2]
[385892717,1758109154467,608.2,0.00014803,2]
[385892718,1758109154677,608.2,0.00015475,2]
[385892719,1758109154880,608.2,0.00016148,2]
[385892720,1758109157194,608.2,0.00016821,2]
[385892721,1758109157410,608.2,0.00017494,2]
[385892722,1758109157613,608.2,0.00018167,2]
[385892723,1758109157813,608.2,0.0001884,2]
[385892724,1758109158022,608.2,0.00019512,2]
[385892725,1758109158248,608.2,0.00020185,2]
[385892726,1758109159145,608.2,0.00020858,2]
[385892727,1758109159385,608.2,0.00021531,2]
[385892728,1758109159620,608.2,0.00022204,2]
[385892729,1758109159680,608.2,0.00022877,2]
[385892732,1758109407719,500.0,0.0002954,120]
[385892733,1758109414014,80000.0,0.00023,3]
[385892735,1758109458646,271.16872459,0.00023,3]
[385892736,1758109458669,64728.83127541,0.00023,3]
[385892737,1758109527834,-172.07220493,0.000232,2]
[385892738,1758109700814,327.92779507,0.000226,2]